[Event "Bremer Silvester Open 2019"]
[Site "Bremen"]
[Date "2019.12.29"]
[Round "6.3"]
[White "Brinkmann, Fabian"]
[Black "Celik, Abdullah"]
[Result "0-1"]
[ECO "A53"]
[WhiteElo "2148"]
[BlackElo "2048"]
[Annotator "NA"]
[PlyCount "40"]
[EventDate "2019.12.27"]
[EventType "swiss"]
[EventCountry "GER"]
[SourceTitle "playchess.com"]
[Source "ChessBase"]
[SourceQuality "1"]
[TimeControl "40/5400+30:1800+30"]

1. d4 {[%emt 0:00:00]} Nf6 {[%emt 0:00:03]} 2. c4 {[%emt 0:00:00]} d6 {[%emt 0:02:27]} 3. Nc3 {[%emt 0:00:48]} e5 {[%emt 0:00:39]} 4. e4 {[%emt 0:07:14]} c6 {[%emt 0:01:06]} 5. Nge2 {[%emt 0:02:24]} Be7 {[%emt 0:01:14]} 6. Ng3 {[%emt 0:02:04]} O-O {[%emt 0:00:51]} 7. Be2 {[%emt 0:00:29]} Qb6 {[%emt 0:03:03]} 8. c5 {[%emt 0:04:34]} Qc7 {[%emt 0:01:19]} 9. cxd6 {[%emt 0:01:38]} Bxd6 {[%emt 0:00:04]} 10. Bg5 {[%emt 0:01:36]} Nbd7 {[%emt 0:10:09]} 11. Nf5 {[%emt 0:04:12]} Bb4 {[%emt 0:00:36]} 12. Qd3 {[%emt 0:14:42]} Qa5 {[%emt 0:10:39]} 13. O-O {[%emt 0:06:46]} Re8 {[%emt 0:17:11]} 14. Qg3 {[%emt 0:06:52]} g6 {[%emt 0:03:16]} 15. Nh6+ {[%emt 0:05:41]} Kg7 {[%emt 0:00:48]} 16. Bc4 {[%emt 0:08:49]} Rf8 {[%emt 0:09:16]} 17. Nf5+ {[%emt 0:10:54]} gxf5 {[%emt 0:10:15]} 18. f4 {[%emt 0:04:46]} Kh8 {[%emt 0:03:12]} 19. fxe5 {[%emt 0:01:41]} Bxc3 {[%emt 0:01:04]} 20. bxc3 {[%emt 0:03:20]} Nxe4 {[%emt 0:00:59]} 0-1

[Event "Bremer Silvester Open 2019"]
[Site "Bremen"]
[Date "2019.12.29"]
[Round "6.4"]
[White "Reuker, Matthias"]
[Black "Villwock, Martin"]
[Result "1-0"]
[ECO "A65"]
[WhiteElo "2016"]
[BlackElo "2108"]
[Annotator "NA"]
[PlyCount "51"]
[EventDate "2019.12.27"]
[EventType "swiss"]
[EventCountry "GER"]
[SourceTitle "playchess.com"]
[Source "ChessBase"]
[SourceQuality "1"]
[TimeControl "40/5400+30:1800+30"]

1. d4 {[%emt 0:00:00]} Nf6 {[%emt 0:00:00]} 2. c4 {[%emt 0:00:00]} c5 {[%emt 0:00:10]} 3. d5 {[%emt 0:00:00]} e6 {[%emt 0:00:24]} 4. Nc3 {[%emt 0:00:14]} exd5 {[%emt 0:00:13]} 5. cxd5 {[%emt 0:00:06]} d6 {[%emt 0:00:07]} 6. e4 {[%emt 0:00:18]} g6 {[%emt 0:00:18]} 7. Nge2 {[%emt 0:00:17]} Bg7 {[%emt 0:01:15]} 8. Ng3 {[%emt 0:00:11]} h5 {[%emt 0:01:12]} 9. Be2 {[%emt 0:11:00]} a6 {[%emt 0:02:55]} 10. a4 {[%emt 0:01:45]} Qe7 {[%emt 0:02:25]} 11. Bg5 {[%emt 0:04:43]} h4 {[%emt 0:01:27]} 12. Nf1 {[%emt 0:00:23]} Qe5 {[%emt 0:01:45]} 13. f4 {[%emt 0:07:21]} Qd4 {[%emt 0:01:09]} 14. Bf3 {[%emt 0:04:19]} h3 {[%emt 0:01:53]} 15. g3 {[%emt 0:12:47]} Qb4 {[%emt 0:07:13]} 16. Ra3 {[%emt 0:14:27]} c4 {[%emt 0:08:59]} 17. Qe2 {[%emt 0:08:10]} O-O {[%emt 0:04:39]} 18. Nd2 {[%emt 0:03:12]} Qxb2 {[%emt 0:09:32]} 19. Nxc4 {[%emt 0:00:56]} Qb4 {[%emt 0:01:17]} 20. O-O {[%emt 0:02:02]} Bg4 {[%emt 0:06:19]} 21. e5 {[%emt 0:12:25]} Bxf3 {[%emt 0:02:24]} 22. Rxf3 {[%emt 0:00:10]} Qc5+ {[%emt 0:03:49]} 23. Kh1 {[%emt 0:01:15]} Nbd7 {[%emt 0:15:43]} 24. Bxf6 {[%emt 0:04:17]} Bxf6 {[%emt 0:03:23]} 25. Ne4 {[%emt 0:01:07]} Qxd5 {[%emt 0:00:40]} 26. Nb6 {[%emt 0:00:56]} 1-0

[Event "Bremer Silvester Open 2019"]
[Site "Bremen"]
[Date "2019.12.29"]
[Round "6.5"]
[White "Wachinger, David"]
[Black "Riewe, Gerhard"]
[Result "1/2-1/2"]
[ECO "D35"]
[WhiteElo "2105"]
[BlackElo "2101"]
[Annotator "NA"]
[PlyCount "87"]
[EventDate "2019.12.27"]
[EventType "swiss"]
[EventCountry "GER"]
[SourceTitle "playchess.com"]
[Source "ChessBase"]
[SourceQuality "1"]
[TimeControl "40/5400+30:1800+30"]

1. d4 {[%emt 0:00:00]} d5 {[%emt 0:00:00]} 2. c4 {[%emt 0:00:00]} e6 {[%emt 0:00:00]} 3. Nc3 {[%emt 0:00:00]} Nf6 {[%emt 0:00:00]} 4. cxd5 {[%emt 0:00:00]} exd5 {[%emt 0:00:25]} 5. Bg5 {[%emt 0:00:03]} Be7 {[%emt 0:01:06]} 6. e3 {[%emt 0:00:25]} c6 {[%emt 0:00:19]} 7. Bd3 {[%emt 0:01:07]} Bg4 {[%emt 0:03:21]} 8. Qc2 {[%emt 0:03:04]} Bh5 {[%emt 0:02:10]} 9. Nge2 {[%emt 0:03:39]} Bg6 {[%emt 0:00:57]} 10. Nf4 {[%emt 0:11:52]} Bxd3 {[%emt 0:00:44]} 11. Nxd3 {[%emt 0:00:03]} Nbd7 {[%emt 0:00:31]} 12. O-O {[%emt 0:01:22]} O-O {[%emt 0:00:54]} 13. b4 {[%emt 0:03:27]} Ne4 {[%emt 0:02:34]} 14. Bf4 {[%emt 0:07:28]} Nxc3 {[%emt 0:01:46]} 15. Qxc3 {[%emt 0:00:24]} Bg5 {[%emt 0:03:03]} 16. b5 {[%emt 0:09:42]} cxb5 {[%emt 0:04:13]} 17. Qb3 {[%emt 0:01:57]} Bxf4 {[%emt 0:03:43]} 18. Nxf4 {[%emt 0:00:58]} Nf6 {[%emt 0:10:24]} 19. Qxb5 {[%emt 0:01:03]} b6 {[%emt 0:01:49]} 20. Rac1 {[%emt 0:06:30]} Qd6 {[%emt 0:04:15]} 21. Qa6 {[%emt 0:10:45]} Qd7 {[%emt 0:03:55]} 22. Rc2 {[%emt 0:03:20]} Rac8 {[%emt 0:01:13]} 23. Rfc1 {[%emt 0:00:07]} Rxc2 {[%emt 0:00:22]} 24. Rxc2 {[%emt 0:00:01]} h6 {[%emt 0:02:57]} 25. a4 {[%emt 0:04:39]} Rd8 {[%emt 0:03:53]} 26. Rc1 {[%emt 0:11:52]} Qe7 {[%emt 0:06:01]} 27. Qb5 {[%emt 0:04:06]} Rd7 {[%emt 0:03:00]} 28. Qc6 {[%emt 0:01:21]} Rd6 {[%emt 0:02:45]} 29. Qc8+ {[%emt 0:04:20]} Rd8 {[%emt 0:00:37]} 30. Qc2 {[%emt 0:02:30]} g6 {[%emt 0:03:32]} 31. Nd3 {[%emt 0:00:57]} Qd6 {[%emt 0:02:03]} 32. Ne5 {[%emt 0:00:28]} Nd7 {[%emt 0:02:36]} 33. Nf3 {[%emt 0:00:32]} Nf6 {[%emt 0:03:59]} 34. h3 {[%emt 0:01:24]} Kg7 {[%emt 0:00:35]} 35. Qc7 {[%emt 0:02:53]} Qxc7 {[%emt 0:01:42]} 36. Rxc7 {[%emt 0:00:01]} Rd7 {[%emt 0:00:14]} 37. Rc8 {[%emt 0:00:21]} Ne4 {[%emt 0:01:56]} 38. Ne5 {[%emt 0:00:59]} Rb7 {[%emt 0:01:25]} 39. f3 {[%emt 0:03:17]} Nf6 {[%emt 0:00:14]} 40. Kf2 {[%emt 0:01:46]} Nd7 {[%emt 0:01:42]} 41. Nd3 {[%emt 0:09:15]} Nf6 {[%emt 0:05:19]} 42. Ne5 {[%emt 0:01:19]} Nd7 {[%emt 0:00:16]} 43. Rd8 {[%emt 0:02:11]} Nf6 {[%emt 0:02:13]} 44. Rc8 {[%emt 0:07:15]} 1/2-1/2

[Event "Bremer Silvester Open 2019"]
[Site "Bremen"]
[Date "2019.12.29"]
[Round "6.6"]
[White "Hochhuth, Arnd"]
[Black "Lorenzen, Bjoern"]
[Result "0-1"]
[ECO "B25"]
[WhiteElo "1904"]
[BlackElo "1946"]
[Annotator "NA"]
[PlyCount "156"]
[EventDate "2019.12.27"]
[EventType "swiss"]
[EventCountry "GER"]
[SourceTitle "playchess.com"]
[Source "ChessBase"]
[SourceQuality "1"]
[TimeControl "40/5400+30:1800+30"]

1. Nf3 {[%emt 0:00:00]} g6 {[%emt 0:03:37]} 2. g3 {[%emt 0:00:01]} Bg7 {[%emt 0:00:39]} 3. Bg2 {[%emt 0:00:29]} d6 {[%emt 0:00:46]} 4. O-O {[%emt 0:01:46]} e5 {[%emt 0:03:04]} 5. e4 {[%emt 0:02:48]} c5 {[%emt 0:02:39]} 6. d3 {[%emt 0:03:25]} Nc6 {[%emt 0:00:44]} 7. Nc3 {[%emt 0:01:43]} Nge7 {[%emt 0:00:17]} 8. Nd2 {[%emt 0:08:33]} O-O {[%emt 0:02:13]} 9. Nc4 {[%emt 0:01:34]} Nd4 {[%emt 0:02:36]} 10. Nd5 {[%emt 0:03:26]} Nxd5 {[%emt 0:01:22]} 11. exd5 {[%emt 0:00:35]} b5 {[%emt 0:00:57]} 12. Nd2 {[%emt 0:03:43]} Nf5 {[%emt 0:04:57]} 13. a4 {[%emt 0:05:35]} Bd7 {[%emt 0:16:07]} 14. axb5 {[%emt 0:02:30]} Bxb5 {[%emt 0:00:11]} 15. Nc4 {[%emt 0:05:59]} Bxc4 {[%emt 0:00:36]} 16. dxc4 {[%emt 0:00:04]} Qb6 {[%emt 0:00:59]} 17. c3 {[%emt 0:07:02]} a5 {[%emt 0:05:24]} 18. Ra3 {[%emt 0:10:52]} Rfb8 {[%emt 0:05:05]} 19. g4 {[%emt 0:06:16]} Ne7 {[%emt 0:01:50]} 20. Be4 {[%emt 0:01:22]} Qc7 {[%emt 0:04:28]} 21. Bc2 {[%emt 0:01:35]} f5 {[%emt 0:04:32]} 22. g5 {[%emt 0:07:23]} Nc8 {[%emt 0:03:26]} 23. b3 {[%emt 0:02:17]} Nb6 {[%emt 0:00:31]} 24. Qe2 {[%emt 0:05:10]} e4 {[%emt 0:04:03]} 25. Bd2 {[%emt 0:00:15]} Nd7 {[%emt 0:02:26]} 26. f4 {[%emt 0:07:38]} exf3 {[%emt 0:10:13]} 27. Rxf3 {[%emt 0:00:27]} Re8 {[%emt 0:00:19]} 28. Re3 {[%emt 0:01:36]} Ne5 {[%emt 0:00:55]} 29. h3 {[%emt 0:00:28]} Qe7 {[%emt 0:00:32]} 30. Qg2 {[%emt 0:00:29]} Qf7 {[%emt 0:03:36]} 31. Ra1 {[%emt 0:01:06]} Re7 {[%emt 0:03:28]} 32. Rf1 {[%emt 0:01:01]} Rb7 {[%emt 0:01:29]} 33. Ree1 {[%emt 0:00:43]} Re7 {[%emt 0:02:50]} 34. Kh1 {[%emt 0:00:18]} Qe8 {[%emt 0:00:22]} 35. Rf4 {[%emt 0:01:44]} Qd7 {[%emt 0:00:24]} 36. Ra1 {[%emt 0:00:42]} Qc7 {[%emt 0:00:21]} 37. Re1 {[%emt 0:00:25]} Rae8 {[%emt 0:00:03]} 38. Qg3 {[%emt 0:00:39]} Nf7 {[%emt 0:00:53]} 39. Rff1 {[%emt 0:01:30]} Rxe1 {[%emt 0:01:35]} 40. Rxe1 {[%emt 0:00:08]} Be5 {[%emt 0:00:36]} 41. Qf2 {[%emt 0:32:23]} Qd8 {[%emt 0:30:22]} 42. Qg1 {[%emt 0:01:02]} Kg7 {[%emt 0:04:45]} 43. Re2 {[%emt 0:00:00]} Rh8 {[%emt 0:00:00]} 44. Rg2 {[%emt 0:00:00]} Re8 {[%emt 0:00:00]} 45. Re2 {[%emt 0:00:00]} Re7 {[%emt 0:00:00]} 46. Re1 {[%emt 0:00:00]} Kg8 {[%emt 0:00:00]} 47. Re2 {[%emt 0:00:00]} Bg7 {[%emt 0:00:00]} 48. Qe1 {[%emt 0:00:00]} Rxe2 {[%emt 0:00:00]} 49. Qxe2 {[%emt 0:00:00]} Ne5 {[%emt 0:00:00]} 50. Kg2 {[%emt 0:00:00]} Kf7 {[%emt 0:00:00]} 51. h4 {[%emt 0:00:00]} Qe7 {[%emt 0:00:00]} 52. b4 {[%emt 0:00:00]} Qc7 {[%emt 0:00:00]} 53. b5 {[%emt 0:00:00]} Qe7 {[%emt 0:00:00]} 54. Bf4 {[%emt 0:00:00]} Nd7 {[%emt 0:00:00]} 55. Qxe7+ {[%emt 0:00:00]} Kxe7 {[%emt 0:00:00]} 56. Bd2 {[%emt 0:00:00]} Nb6 {[%emt 0:00:00]} 57. Bb3 {[%emt 0:00:00]} a4 {[%emt 0:00:00]} 58. Ba2 {[%emt 0:00:00]} Kd7 {[%emt 0:00:00]} 59. Kf3 {[%emt 0:00:00]} Kc7 {[%emt 0:00:00]} 60. Ke2 {[%emt 0:00:00]} Be5 {[%emt 0:00:00]} 61. Be1 {[%emt 0:00:00]} Nd7 {[%emt 0:00:00]} 62. Kd3 {[%emt 0:00:04]} Bf4 {[%emt 0:00:00]} 63. Ke2 {[%emt 0:01:10]} Ne5 {[%emt 0:00:00]} 64. Bf2 {[%emt 0:01:18]} Ng4 {[%emt 0:00:00]} 65. Be1 {[%emt 0:00:21]} h6 {[%emt 0:00:00]} 66. Bd2 {[%emt 0:00:48]} Bxd2 {[%emt 0:01:39]} 67. Kxd2 {[%emt 0:00:04]} hxg5 {[%emt 0:01:52]} 68. hxg5 {[%emt 0:00:02]} Ne5 {[%emt 0:00:26]} 69. Ke3 {[%emt 0:00:23]} Nd7 {[%emt 0:00:33]} 70. Kf4 {[%emt 0:00:33]} Kd8 {[%emt 0:00:20]} 71. Ke3 {[%emt 0:00:51]} Ne5 {[%emt 0:00:57]} 72. Kf4 {[%emt 0:00:44]} Nd3+ {[%emt 0:00:37]} 73. Ke3 {[%emt 0:00:08]} Nc1 {[%emt 0:06:42]} 74. Bb1 {[%emt 0:01:19]} a3 {[%emt 0:00:28]} 75. b6 {[%emt 0:02:19]} a2 {[%emt 0:00:15]} 76. Bxa2 {[%emt 0:02:06]} Nxa2 {[%emt 0:00:06]} 77. Kd3 {[%emt 0:00:44]} Kc8 {[%emt 0:01:18]} 78. Kc2 {[%emt 0:00:09]} Kb7 {[%emt 0:01:44]} 0-1

[Event "Bremer Silvester Open 2019"]
[Site "Bremen"]
[Date "2019.12.30"]
[Round "7.1"]
[White "Celik, Abdullah"]
[Black "Grishchenko, Sergey"]
[Result "1/2-1/2"]
[ECO "B16"]
[WhiteElo "2048"]
[BlackElo "2404"]
[Annotator "NA"]
[PlyCount "33"]
[EventDate "2019.12.27"]
[EventType "swiss"]
[EventCountry "GER"]
[SourceTitle "playchess.com"]
[Source "ChessBase"]
[SourceQuality "1"]
[TimeControl "40/5400+30:1800+30"]

{[%evp 8,24,40,36,77,87,80,65,70,60,63,45,45,36,41,31,47,32767,41]} 1. e4 {[%emt 0:00:00]} c6 {[%emt 0:00:00]} 2. d4 {[%emt 0:00:00]} d5 {[%emt 0:00:00]} 3. Nd2 {[%emt 0:00:29]} dxe4 {[%emt 0:00:00]} 4. Nxe4 {[%emt 0:00:04]} Nf6 {[%emt 0:00:02]} 5. Nxf6+ {[%emt 0:00:42]} gxf6 {[%emt 0:00:04]} 6. Nf3 {[%emt 0:00:29]} Bf5 {[%emt 0:00:18]} 7. Bd3 {[%emt 0:00:46]} Nd7 {[%emt 0:11:51]} 8. O-O {[%emt 0:01:15]} Bg6 {[%emt 0:00:32]} 9. Bf4 {[%emt 0:01:06]} Bg7 {[%emt 0:04:44]} 10. Re1 {[%emt 0:01:29]} O-O {[%emt 0:02:51]} 11. Qe2 {[%emt 0:00:57]} Re8 {[%emt 0:00:48]} 12. Rad1 {[%emt 0:01:35]} Qa5 $14 {[%emt 0:15:33]} 13. Nd2 {[%emt 0:22:30]} e5 {[%emt 0:38:51]} 14. Nc4 {[%emt 0:19:09]} Qc7 {[%emt 0:00:56]} 15. dxe5 {[%emt 0:09:33]} fxe5 {[%emt 0:04:03]} 16. Bg3 {[%emt 0:03:23]} b5 {[%emt 0:13:44]} 17. Ne3 {[%emt 0:35:03]} 1/2-1/2

[Event "Bremer Silvester Open 2019"]
[Site "Bremen"]
[Date "2019.12.30"]
[Round "7.2"]
[White "Wachinger, Nikolas"]
[Black "Hoerstmann, Martin"]
[Result "1-0"]
[ECO "A42"]
[WhiteElo "2234"]
[BlackElo "2208"]
[Annotator "NA"]
[PlyCount "72"]
[EventDate "2019.12.27"]
[EventType "swiss"]
[EventCountry "GER"]
[SourceTitle "playchess.com"]
[Source "ChessBase"]
[SourceQuality "1"]
[TimeControl "40/5400+30:1800+30"]

1. d4 {[%emt 0:00:00]} g6 {[%emt 0:09:26]} 2. c4 {[%emt 0:00:00]} Bg7 {[%emt 0:00:09]} 3. e4 {[%emt 0:00:00]} d6 {[%emt 0:00:59]} 4. Nc3 {[%emt 0:00:14]} e5 {[%emt 0:00:22]} 5. Nge2 {[%emt 0:05:07]} Ne7 {[%emt 0:02:35]} 6. Be3 {[%emt 0:03:48]} O-O {[%emt 0:04:07]} 7. Qd2 {[%emt 0:07:53]} Nd7 {[%emt 0:00:38]} 8. O-O-O {[%emt 0:06:06]} f5 {[%emt 0:02:24]} 9. Bg5 {[%emt 0:03:45]} exd4 {[%emt 0:14:31]} 10. Nxd4 $14 {[%emt 0:14:53]} Nf6 {[%emt 0:01:06]} 11. Bd3 {[%emt 0:02:49]} fxe4 {[%emt 0:14:38]} 12. Nxe4 {[%emt 0:04:00]} Nf5 {[%emt 0:19:07]} 13. Nf3 {[%emt 0:06:32]} Be6 {[%emt 0:08:35]} 14. h4 {[%emt 0:07:03]} Qd7 {[%emt 0:03:22]} 15. Nxf6+ {[%emt 0:03:30]} Bxf6 {[%emt 0:00:04]} 16. h5 {[%emt 0:01:18]} Bg7 {[%emt 0:06:11]} 17. hxg6 {[%emt 0:00:16]} hxg6 {[%emt 0:00:04]} 18. g4 {[%emt 0:02:06]} Ng3 {[%emt 0:00:17]} 19. fxg3 {[%emt 0:01:43]} Rxf3 {[%emt 0:00:05]} 20. Be4 {[%emt 0:06:46]} Qf7 {[%emt 0:00:19]} 21. Bf4 {[%emt 0:01:14]} Rxf4 {[%emt 0:01:33]} 22. gxf4 {[%emt 0:00:19]} Bxc4 {[%emt 0:00:20]} 23. b3 {[%emt 0:05:36]} Re8 {[%emt 0:02:38]} 24. Rde1 {[%emt 0:06:23]} Rxe4 {[%emt 0:00:32]} 25. Rxe4 {[%emt 0:00:52]} Bd5 {[%emt 0:00:05]} 26. Re8+ {[%emt 0:04:06]} Qxe8 {[%emt 0:00:16]} 27. Qxd5+ {[%emt 0:00:02]} Qf7 {[%emt 0:00:05]} 28. Qxf7+ {[%emt 0:00:19]} Kxf7 {[%emt 0:00:07]} 29. Kd2 {[%emt 0:00:04]} c5 {[%emt 0:01:54]} 30. Ke3 {[%emt 0:04:10]} d5 {[%emt 0:00:06]} 31. f5 {[%emt 0:00:05]} gxf5 {[%emt 0:02:02]} 32. gxf5 {[%emt 0:00:02]} b5 {[%emt 0:00:02]} 33. Rd1 {[%emt 0:01:12]} Bd4+ {[%emt 0:01:47]} 34. Rxd4 {[%emt 0:00:24]} cxd4+ {[%emt 0:00:04]} 35. Kxd4 {[%emt 0:00:06]} Kf6 {[%emt 0:00:03]} 36. Kxd5 {[%emt 0:00:06]} Kxf5 {[%emt 0:07:27] Ke4+} 1-0

[Event "Bremer Silvester Open 2019"]
[Site "Bremen"]
[Date "2019.12.30"]
[Round "7.3"]
[White "Reuker, Jari"]
[Black "Reuker, Matthias"]
[Result "1-0"]
[ECO "A25"]
[WhiteElo "2383"]
[BlackElo "2016"]
[Annotator "NA"]
[PlyCount "76"]
[EventDate "2019.12.27"]
[EventType "swiss"]
[EventCountry "GER"]
[SourceTitle "playchess.com"]
[Source "ChessBase"]
[SourceQuality "1"]
[TimeControl "40/5400+30:1800+30"]

1. g3 {[%emt 0:00:00]} e5 {[%emt 0:00:00]} 2. c4 {[%emt 0:02:13]} Nc6 {[%emt 0:01:07]} 3. Bg2 {[%emt 0:00:24]} f5 {[%emt 0:01:27]} 4. Nc3 {[%emt 0:00:22]} Nf6 {[%emt 0:00:08]} 5. e3 {[%emt 0:00:57]} e4 {[%emt 0:05:32]} 6. d3 {[%emt 0:03:58]} Bb4 {[%emt 0:00:45]} 7. dxe4 {[%emt 0:11:26]} (7. Nge2 $14) 7... Bxc3+ $1 {[%emt 0:02:47]} 8. bxc3 {[%emt 0:00:03]} fxe4 $17 {[%emt 0:00:08]} 9. Nh3 {[%emt 0:30:59]} d6 {[%emt 0:02:36]} 10. Nf4 {[%emt 0:02:52]} Ne5 {[%emt 0:04:00]} 11. O-O {[%emt 0:01:41]} Bg4 {[%emt 0:14:24]} 12. Qb3 {[%emt 0:00:49]} g5 {[%emt 0:01:47]} 13. Nd5 {[%emt 0:01:48]} Bf3 {[%emt 0:08:38]} 14. Qxb7 {[%emt 0:02:12]} O-O {[%emt 0:02:42]} 15. Qxc7 {[%emt 0:02:10]} Qxc7 {[%emt 0:16:46]} 16. Nxc7 {[%emt 0:00:03]} Rac8 {[%emt 0:00:06]} 17. Ne6 {[%emt 0:00:21]} Bxg2 {[%emt 0:00:42]} 18. Kxg2 {[%emt 0:00:13]} Rfe8 {[%emt 0:00:04]} 19. Nxg5 {[%emt 0:00:59]} Rxc4 {[%emt 0:02:19]} 20. Ba3 {[%emt 0:11:00]} Rc6 {[%emt 0:09:46]} 21. Rfd1 {[%emt 0:03:30]} Nc4 {[%emt 0:00:10]} 22. Bc1 {[%emt 0:00:06]} Ne5 {[%emt 0:06:18]} 23. Ba3 {[%emt 0:02:03]} Nc4 {[%emt 0:00:15]} 24. Bc1 {[%emt 0:00:04]} Ne5 {[%emt 0:00:02]} 25. Rd4 {[%emt 0:12:50]} Nd3 {[%emt 0:00:25]} 26. Nxe4 {[%emt 0:01:35]} Nxe4 {[%emt 0:02:21]} 27. Rxd3 {[%emt 0:00:10]} Rf8 {[%emt 0:00:06]} 28. f3 {[%emt 0:01:59]} Nxc3 {[%emt 0:00:04]} 29. Bd2 {[%emt 0:00:51]} Rfc8 {[%emt 0:03:13]} 30. Bxc3 {[%emt 0:01:14]} Rxc3 {[%emt 0:00:06]} 31. Rxc3 {[%emt 0:00:43]} Rxc3 {[%emt 0:00:04]} 32. e4 {[%emt 0:00:21]} Ra3 {[%emt 0:01:40]} 33. g4 {[%emt 0:01:43]} Kf7 {[%emt 0:01:08]} 34. Kg3 {[%emt 0:00:05]} Kg6 {[%emt 0:02:42]} 35. h4 {[%emt 0:00:51]} Kf6 {[%emt 0:00:21]} 36. Rd1 {[%emt 0:00:26]} Ke5 {[%emt 0:00:30]} 37. Rd5+ {[%emt 0:00:14]} Ke6 {[%emt 0:00:13]} 38. Rd2 {[%emt 0:00:07]} Ke5 {[%emt 0:00:32]} 1-0

[Event "Bremer Silvester Open 2019"]
[Site "Bremen"]
[Date "2019.12.30"]
[Round "7.4"]
[White "Koerber, Uwe"]
[Black "Wachinger, David"]
[Result "0-1"]
[ECO "B23"]
[WhiteElo "1762"]
[BlackElo "2105"]
[Annotator "NA"]
[PlyCount "64"]
[EventDate "2019.12.27"]
[EventType "swiss"]
[EventCountry "GER"]
[SourceTitle "playchess.com"]
[Source "ChessBase"]
[SourceQuality "1"]
[TimeControl "40/5400+30:1800+30"]

1. e4 {[%emt 0:00:00]} c5 {[%emt 0:00:00]} 2. Nc3 {[%emt 0:00:03]} d6 {[%emt 0:00:00]} 3. f4 {[%emt 0:00:38]} Nc6 {[%emt 0:00:32]} 4. Bc4 {[%emt 0:05:45]} g6 {[%emt 0:00:40]} 5. Nf3 {[%emt 0:00:17]} e6 {[%emt 0:03:07]} 6. a4 {[%emt 0:01:53]} (6. d4 $11) 6... Bg7 {[%emt 0:00:20]} 7. O-O {[%emt 0:00:48]} Nge7 {[%emt 0:00:15]} 8. Qe1 {[%emt 0:01:59]} O-O {[%emt 0:00:52]} 9. d3 {[%emt 0:01:16]} d5 {[%emt 0:08:03]} 10. Ba2 {[%emt 0:03:37]} Nb4 {[%emt 0:01:57]} 11. Bb1 {[%emt 0:05:43]} dxe4 {[%emt 0:02:07]} 12. dxe4 {[%emt 0:01:03]} b6 {[%emt 0:02:47]} 13. Kh1 {[%emt 0:06:10]} Bb7 {[%emt 0:03:36]} 14. Qe2 {[%emt 0:03:49]} a6 {[%emt 0:07:08]} 15. Nd1 {[%emt 0:04:36]} Qc7 {[%emt 0:04:11]} 16. c3 {[%emt 0:03:27]} Nbc6 $11 {[%emt 0:00:09]} 17. f5 {[%emt 0:13:02]} exf5 {[%emt 0:07:35]} 18. exf5 {[%emt 0:01:15]} Nxf5 {[%emt 0:02:10]} 19. Bxf5 {[%emt 0:00:43]} gxf5 {[%emt 0:00:08]} 20. Nh4 {[%emt 0:03:14]} Ne7 {[%emt 0:18:07]} 21. Bf4 {[%emt 0:07:05]} Qc6 {[%emt 0:00:39]} 22. Qxe7 {[%emt 0:00:18]} Bf6 {[%emt 0:00:42]} 23. Qe2 {[%emt 0:04:53]} Bxh4 {[%emt 0:00:27]} 24. Rf3 {[%emt 0:06:58]} Rfe8 {[%emt 0:04:45]} 25. Ne3 {[%emt 0:04:59]} Re4 {[%emt 0:01:20]} 26. Bg3 {[%emt 0:06:22]} Bg5 {[%emt 0:04:16]} 27. Rg1 {[%emt 0:05:05]} f4 {[%emt 0:11:15]} 28. Rxf4 {[%emt 0:00:11]} Bxf4 {[%emt 0:01:57]} 29. Qg4+ {[%emt 0:00:13]} Qg6 {[%emt 0:00:16]} 30. b3 {[%emt 0:03:56]} Bxg3 {[%emt 0:01:34]} 31. Qxg3 {[%emt 0:01:43]} Qxg3 {[%emt 0:00:12]} 32. hxg3 {[%emt 0:00:03]} Rxe3 {[%emt 0:00:24]} 0-1

[Event "Bremer Silvester Open 2019"]
[Site "Bremen"]
[Date "2019.12.30"]
[Round "7.5"]
[White "Riewe, Gerhard"]
[Black "Lorenzen, Bjoern"]
[Result "1-0"]
[ECO "B13"]
[WhiteElo "2101"]
[BlackElo "1946"]
[Annotator "NA"]
[PlyCount "73"]
[EventDate "2019.12.27"]
[EventType "swiss"]
[EventCountry "GER"]
[SourceTitle "playchess.com"]
[Source "ChessBase"]
[SourceQuality "1"]
[TimeControl "40/5400+30:1800+30"]

1. e4 {[%emt 0:00:00]} c6 {[%emt 0:05:47]} 2. d4 {[%emt 0:00:10]} d5 {[%emt 0:00:08]} 3. exd5 {[%emt 0:00:18]} cxd5 {[%emt 0:00:21]} 4. Bd3 {[%emt 0:00:12]} Nc6 {[%emt 0:00:11]} 5. c3 {[%emt 0:00:08]} Qc7 {[%emt 0:00:32]} 6. Bg5 {[%emt 0:04:47]} Nf6 {[%emt 0:01:16]} 7. h3 {[%emt 0:01:43]} Ne4 {[%emt 0:05:34]} 8. Bxe4 {[%emt 0:01:12]} dxe4 {[%emt 0:00:02]} 9. Bh4 {[%emt 0:00:41]} e6 {[%emt 0:18:58]} 10. Bg3 $11 {[%emt 0:03:02]} Qb6 {[%emt 0:04:15]} 11. Qb3 {[%emt 0:02:10]} Qxb3 {[%emt 0:00:44]} 12. axb3 {[%emt 0:00:06]} Be7 {[%emt 0:01:52]} 13. Nd2 {[%emt 0:12:31]} f5 {[%emt 0:03:08]} 14. Nc4 {[%emt 0:02:51]} Bd7 {[%emt 0:07:39]} 15. Ne2 {[%emt 0:03:37]} O-O {[%emt 0:02:02]} 16. O-O {[%emt 0:03:58]} b5 {[%emt 0:04:24]} 17. Ne5 {[%emt 0:01:22]} Nxe5 {[%emt 0:01:36]} 18. Bxe5 {[%emt 0:00:11]} a5 {[%emt 0:00:34]} 19. Ra2 {[%emt 0:02:01]} Bd8 {[%emt 0:00:19]} 20. c4 {[%emt 0:01:36]} Rc8 {[%emt 0:03:30]} 21. c5 {[%emt 0:01:25]} Bc6 {[%emt 0:00:51]} 22. Nf4 {[%emt 0:05:48]} Bd5 {[%emt 0:00:37]} 23. Nxd5 {[%emt 0:01:15]} exd5 {[%emt 0:00:02]} 24. Rc1 {[%emt 0:03:21]} Rc6 {[%emt 0:00:19]} 25. Rc3 {[%emt 0:01:10]} Rf7 {[%emt 0:02:58]} 26. b4 {[%emt 0:01:52]} a4 {[%emt 0:12:18]} 27. b3 {[%emt 0:00:26]} axb3 {[%emt 0:04:44]} 28. Rxb3 {[%emt 0:00:06]} Rd7 {[%emt 0:03:33]} 29. Ra8 {[%emt 0:01:22]} Kf7 {[%emt 0:00:44]} 30. Rba3 {[%emt 0:01:08]} Bg5 {[%emt 0:00:49]} 31. Rb8 {[%emt 0:02:34]} Bf6 {[%emt 0:02:43]} 32. Bxf6 {[%emt 0:00:53]} Rxf6 {[%emt 0:00:34]} 33. Rxb5 {[%emt 0:00:19]} Ke7 {[%emt 0:03:23]} 34. Rb8 {[%emt 0:00:43]} Rf8 {[%emt 0:00:59]} 35. Rxf8 {[%emt 0:03:17]} Kxf8 {[%emt 0:00:01]} 36. b5 {[%emt 0:00:21]} Ke7 {[%emt 0:00:09]} 37. b6 {[%emt 0:00:20]} 1-0